bitfinex/quotes_BTCUSD_20251010
["timestamp","ask_amount","ask_price","bid_price","bid_amount"]
[1760088888896,6.96489573,121930.0,121920.0,0.47779946]
[1760088889146,6.21411073,121930.0,121920.0,0.48960946]
[1760088889396,6.66380273,121930.0,121920.0,0.48960946]
[1760088889616,5.62633588,121930.0,121920.0,0.48960946]
[1760088889881,5.17298173,121930.0,121920.0,0.48960946]
[1760088890109,5.16967973,121930.0,121920.0,0.51341946]
[1760088890329,6.09914052,121930.0,121920.0,0.51341946]
[1760088890547,6.43029352,121930.0,121920.0,0.48960946]
[1760088890754,6.46526652,121930.0,121920.0,0.48960946]
[1760088890953,2.19657152,121930.0,121920.0,0.48960946]
[1760088891178,6.28004152,121930.0,121920.0,0.48960946]
[1760088891375,2.19657152,121930.0,121920.0,0.48960946]
[1760088891654,6.30073752,121930.0,121920.0,0.48960946]
[1760088891873,6.29892752,121930.0,121920.0,0.48960946]
[1760088892088,6.51004052,121930.0,121920.0,0.48960946]
[1760088892303,6.52813352,121930.0,121920.0,0.48960946]
[1760088892535,2.19657152,121930.0,121920.0,0.48960946]
[1760088892751,6.52943652,121930.0,121920.0,0.48960946]
[1760088892956,6.53051752,121930.0,121920.0,0.48960946]
[1760088893184,6.52954852,121930.0,121920.0,0.48960946]
[1760088893385,6.51178952,121930.0,121920.0,0.48960946]
[1760088893617,6.53324052,121930.0,121920.0,0.48960946]
[1760088893843,6.53351748,121930.0,121920.0,0.48960946]
[1760088894056,6.53351048,121930.0,121920.0,0.48960946]
[1760088894280,2.19657148,121930.0,121920.0,0.48960946]
[1760088894490,6.51178948,121930.0,121920.0,0.48960946]
[1760088894712,6.52972048,121930.0,121920.0,0.48960946]
[1760088894929,6.53607748,121930.0,121920.0,0.48960946]
[1760088895165,2.19657148,121930.0,121920.0,0.48960946]
[1760088895377,6.53394748,121930.0,121920.0,0.48960946]
[1760088895828,6.53406448,121930.0,121920.0,0.48960946]
[1760088896018,2.74653973,121930.0,121920.0,0.51341946]
[1760088896240,1.73490473,121930.0,121920.0,0.51341946]
[1760088896464,2.05510258,121930.0,121920.0,0.51341946]
[1760088897535,2.05510243,121930.0,121920.0,0.51341946]
[1760088898274,1.39638243,121930.0,121920.0,0.51341946]
[1760088898487,2.05510243,121930.0,121920.0,0.51341946]
[1760088899747,1.82342243,121930.0,121920.0,0.51341946]
[1760088899965,2.05510243,121930.0,121920.0,0.51341946]
[1760088900813,1.89054443,121930.0,121920.0,0.51341946]
[1760088901025,1.97594443,121930.0,121920.0,0.51341946]
[1760088903005,1.65574658,121930.0,121920.0,0.51341946]
[1760088903252,1.97594443,121930.0,121920.0,0.51272946]
[1760088903471,1.63482308,121930.0,121920.0,0.51272946]
[1760088904150,1.31462523,121930.0,121920.0,0.51272946]
[1760088904376,1.63482308,121930.0,121920.0,0.51272946]
[1760088904599,1.40314308,121930.0,121920.0,0.51272946]
[1760088904840,1.63482308,121930.0,121920.0,0.51272946]
[1760088905291,1.40314308,121930.0,121920.0,0.48960946]
[1760088905517,1.39314308,121930.0,121920.0,0.46198946]
[1760088905730,1.62482308,121930.0,121920.0,0.46198946]
[1760088905972,1.39314308,121930.0,121920.0,0.46198946]
[1760088906183,1.62482308,121930.0,121920.0,0.46198946]
[1760088906395,1.62482308,121930.0,121920.0,0.47829946]
[1760088907515,1.74349283,121930.0,121920.0,0.46198946]
[1760088907738,1.88824889,121930.0,121920.0,0.46198946]
[1760088907967,6.88824889,121930.0,121920.0,0.46198946]
[1760088908405,6.91290946,121930.0,121920.0,0.46198946]
[1760088909040,7.32122946,121930.0,121920.0,0.46198946]
[1760088909259,7.5303084,121930.0,121920.0,0.46198946]
[1760088909480,2.5303084,121930.0,121920.0,0.46198946]
[1760088909709,7.5303084,121930.0,121920.0,0.46198946]
[1760088910176,7.5303084,121930.0,121920.0,0.46159086]
[1760088910426,2.5303084,121930.0,121920.0,0.46159086]
[1760088910662,7.5303084,121930.0,121920.0,0.46159086]
[1760088912038,2.5303084,121930.0,121920.0,0.46159086]
[1760088912256,7.5303084,121930.0,121920.0,0.46159086]
[1760088914841,7.2986284,121930.0,121920.0,0.46159086]
[1760088915065,7.5303084,121930.0,121920.0,0.46159086]
[1760088916116,2.5303084,121930.0,121920.0,0.46159086]
[1760088916731,7.5303084,121930.0,121920.0,0.46159086]
[1760088916949,7.5223084,121930.0,121920.0,0.46159086]
[1760088917521,2.5223084,121930.0,121920.0,0.46159086]
[1760088917903,7.5223084,121930.0,121920.0,0.46159086]
[1760088918771,2.5223084,121930.0,121920.0,0.46159086]
[1760088918978,6.8635884,121930.0,121920.0,0.46159086]
[1760088919190,7.5223084,121930.0,121920.0,0.46159086]
[1760088920472,2.5223084,121930.0,121920.0,0.46159086]
[1760088920893,7.5223084,121930.0,121920.0,0.46159086]
[1760088921522,2.5223084,121930.0,121920.0,0.46159086]
[1760088921728,7.5223084,121930.0,121920.0,0.46159086]
[1760088921937,2.5303084,121930.0,121920.0,0.46159086]
[1760088922147,7.5303084,121930.0,121920.0,0.46159086]
[1760088922361,2.5303084,121930.0,121920.0,0.46159086]
[1760088922781,7.5303084,121930.0,121920.0,0.46159086]
[1760088923459,7.31688426,121930.0,121920.0,0.46159086]
[1760088925116,7.08520426,121930.0,121920.0,0.46159086]
[1760088925320,7.31688426,121930.0,121920.0,0.46159086]
[1760088925660,2.31688426,121930.0,121920.0,0.46159086]
[1760088925870,7.31688426,121930.0,121920.0,0.46159086]
[1760088926195,2.31688426,121930.0,121920.0,0.46159086]
[1760088926626,7.31688426,121930.0,121920.0,0.46159086]
[1760088927021,2.31688426,121930.0,121920.0,0.46159086]
[1760088927219,7.31688426,121930.0,121920.0,0.46159086]
[1760088927434,7.08520426,121930.0,121920.0,0.46159086]
[1760088927647,7.31688426,121930.0,121920.0,0.46159086]
[1760088930078,7.08520426,121930.0,121920.0,0.46159086]
[1760088930520,7.31688426,121930.0,121920.0,0.46159086]
[1760088930744,2.31688426,121930.0,121920.0,0.46159086]
[1760088930989,7.31688426,121930.0,121920.0,0.46159086]
[1760088931203,2.31688426,121930.0,121920.0,0.46159086]
[1760088931713,7.31688426,121930.0,121920.0,0.46159086]
[1760088932398,2.31688426,121930.0,121920.0,0.46159086]
[1760088932636,7.31688426,121930.0,121920.0,0.46159086]
[1760088933069,6.65816426,121930.0,121920.0,0.46159086]
[1760088933320,7.08520426,121930.0,121920.0,0.46159086]
[1760088933569,7.31688426,121930.0,121920.0,0.46159086]
[1760088937051,2.31688426,121930.0,121920.0,0.46159086]
[1760088937263,7.31688426,121930.0,121920.0,0.46159086]
[1760088937915,2.31688426,121930.0,121920.0,0.46159086]
[1760088938134,7.30888426,121930.0,121920.0,0.46159086]
[1760088938632,6.65016426,121930.0,121920.0,0.46159086]
[1760088938841,7.30888426,121930.0,121920.0,0.46159086]
[1760088939257,6.65016426,121930.0,121920.0,0.46159086]
[1760088939469,7.30888426,121930.0,121920.0,0.46159086]
[1760088939911,6.65016426,121930.0,121920.0,0.46159086]
[1760088940133,5.1345968,121930.0,121920.0,0.47757086]
[1760088940350,3.3280598,121930.0,121920.0,0.48997086]
[1760088940567,2.4954808,121930.0,121920.0,0.67731285]
[1760088940775,1.77663874,121930.0,121920.0,0.51327086]
[1760088941003,1.77663874,121930.0,121920.0,0.67731285]
[1760088941229,1.76894462,121930.0,121920.0,0.67731285]
[1760088941444,1.34190462,121930.0,121920.0,0.67731285]
[1760088941653,1.77664228,121930.0,121920.0,0.67731285]
[1760088941867,1.75418462,121930.0,121920.0,0.51327086]
[1760088942074,1.76188221,121930.0,121920.0,0.51327086]
[1760088942548,1.42188221,121930.0,121920.0,0.51327086]
[1760088942766,1.41418462,121930.0,121920.0,0.51327086]
[1760088943201,1.72250618,121930.0,121920.0,0.48997086]
[1760088943414,1.95418618,121930.0,121920.0,0.48997086]
[1760088943631,2.30188373,121930.0,121920.0,0.48997086]
[1760088943885,2.3850058,121930.0,121920.0,0.46159086]
[1760088944098,2.3850058,121930.0,121920.0,0.47757086]
[1760088944308,2.1533258,121930.0,121920.0,0.47757086]
[1760088944544,1.95033668,121930.0,121920.0,0.48997086]
[1760088944770,1.95803072,121930.0,121920.0,0.48997086]
[1760088945008,2.38500228,121930.0,121920.0,0.48997086]
[1760088945137,2.37730824,121930.0,121920.0,0.48997086]
[1760088946561,1.71858824,121930.0,121920.0,0.48997086]
[1760088946766,2.38500208,121930.0,121920.0,0.48997086]
[1760088948744,1.72628208,121930.0,121920.0,0.48997086]
[1760088949001,2.15332208,121930.0,121920.0,0.51466086]
[1760088949206,2.37730824,121930.0,121920.0,0.48997086]
[1760088949412,2.38499832,121930.0,121920.0,0.48997086]
[1760088949621,1.95802676,121930.0,121920.0,0.51466086]
[1760088949825,2.38499832,121930.0,121920.0,0.51466086]
[1760088950237,2.37730824,121930.0,121920.0,0.51466086]
[1760088950763,2.36930824,121930.0,121920.0,0.51466086]
[1760088951361,2.05222824,121930.0,121920.0,0.51466086]
[1760088951601,2.13762824,121930.0,121920.0,0.51466086]
[1760088951729,2.36926824,121930.0,121920.0,0.51466086]
[1760088952422,1.94222824,121930.0,121920.0,0.51466086]
[1760088952646,2.36926824,121930.0,121920.0,0.51466086]
[1760088952868,2.13762824,121930.0,121920.0,0.51466086]
[1760088953073,2.36926824,121930.0,121920.0,0.51466086]
[1760088953787,2.13762824,121930.0,121920.0,0.51466086]
[1760088954049,2.36926824,121930.0,121920.0,0.51466086]
[1760088955661,2.37726824,121930.0,121920.0,0.51466086]
[1760088957058,2.14562824,121930.0,121920.0,0.51466086]
[1760088957269,2.37726824,121930.0,121920.0,0.51466086]
[1760088957994,1.71858824,121930.0,121920.0,0.51466086]
[1760088958202,2.37726824,121930.0,121920.0,0.51466086]
[1760088959423,1.71858824,121930.0,121920.0,0.51466086]
[1760088959649,2.37722824,121930.0,121920.0,0.51466086]
[1760088960016,1.71858824,121930.0,121920.0,0.51466086]
[1760088960236,2.37722824,121930.0,121920.0,0.51466086]
[1760088961662,1.71858824,121930.0,121920.0,0.51466086]
[1760088961873,2.37722824,121930.0,121920.0,0.51466086]
[1760088962083,1.71858824,121930.0,121920.0,0.51466086]
[1760088962292,1.95025668,121930.0,121920.0,0.51466086]
[1760088962625,1.29161668,121930.0,121920.0,0.67870285]
[1760088962836,1.29161668,121930.0,121920.0,0.51466086]
[1760088962837,1.95025668,121930.0,121920.0,0.51466086]
[1760088963735,1.71861668,121930.0,121920.0,0.51466086]
[1760088963937,1.95025668,121930.0,121920.0,0.51466086]
[1760088964395,1.71861668,121930.0,121920.0,0.51466086]
[1760088964609,1.95025668,121930.0,121920.0,0.51466086]
[1760088966689,1.94225668,121930.0,121920.0,0.51466086]
[1760088968311,1.94994847,121930.0,121920.0,0.51466086]
[1760088969256,1.9499486,121930.0,121920.0,0.51466086]
[1760088970493,1.94854749,121930.0,121920.0,0.51466086]
[1760088970933,1.28990749,121930.0,121920.0,0.51466086]
[1760088971140,1.94854749,121930.0,121920.0,0.51466086]
[1760088971773,1.95654749,121930.0,121920.0,0.51466086]
[1760088972609,1.72490749,121930.0,121920.0,0.51466086]
[1760088972816,1.95654749,121930.0,121920.0,0.51466086]
[1760088975893,1.72490749,121930.0,121920.0,0.51466086]
[1760088976104,1.95654749,121930.0,121920.0,0.51466086]
[1760088978262,1.72490749,121930.0,121920.0,0.51466086]
[1760088978475,1.95654749,121930.0,121920.0,0.51466086]
[1760088981035,1.29790749,121930.0,121920.0,0.51466086]
[1760088981275,1.95654749,121930.0,121920.0,0.51466086]
[1760088982741,1.87114749,121930.0,121920.0,0.51466086]
[1760088982944,1.95654749,121930.0,121920.0,0.51466086]
[1760088983149,1.29790749,121930.0,121920.0,0.51466086]
[1760088983361,1.95654749,121930.0,121920.0,0.51466086]
[1760088984397,1.29790749,121930.0,121920.0,0.51466086]
[1760088984605,1.95654749,121930.0,121920.0,0.51466086]
[1760088985646,2.27664357,121930.0,121920.0,0.51466086]
[1760088987781,2.26864357,121930.0,121920.0,0.51466086]
[1760088989058,1.34414643,121930.0,121920.0,0.67870285]
[1760088989279,1.50302103,121930.0,121920.0,0.99879893]
[1760088989837,0.81972046,121930.0,121920.0,0.99879893]
[1760088990049,1.13676046,121930.0,121920.0,0.99879893]
[1760088990261,0.31569192,121930.0,121920.0,0.99879893]
[1760088990478,0.0934,121930.0,121920.0,1.07879573]
[1760088990666,0.48106854,121930.0,121920.0,0.99879893]
[1760088991283,0.24942854,121930.0,121920.0,0.67870285]
[1760088991488,0.48106854,121930.0,121920.0,0.99879893]
[1760088992131,0.24942854,121930.0,121920.0,0.51466086]
[1760088992333,0.48102854,121930.0,121920.0,0.51466086]
[1760088993519,0.48102854,121930.0,121920.0,0.67870285]
[1760088993953,0.24942854,121930.0,121920.0,0.67870285]
[1760088994150,0.48102854,121930.0,121920.0,0.67870285]
[1760088994324,0.0854,121930.0,121920.0,0.67870285]
[1760088994553,0.48102854,121930.0,121920.0,0.99879893]
[1760088995802,0.24942854,121930.0,121920.0,0.99879893]
[1760088996003,0.48102854,121930.0,121920.0,0.99879893]
[1760088996418,0.48102854,121930.0,121920.0,0.67870285]
[1760088997459,0.48102854,121930.0,121920.0,0.99879893]
[1760088998617,0.48102854,121930.0,121920.0,0.67870285]
[1760088999698,0.24942854,121930.0,121920.0,0.67870285]
[1760088999913,0.48102854,121930.0,121920.0,0.67870285]
[1760089002544,0.48102854,121930.0,121920.0,0.99879893]
[1760089003593,0.48102854,121930.0,121920.0,0.51466086]
[1760089004028,0.80112462,121930.0,121920.0,0.51466086]
[1760089004248,0.56952462,121930.0,121920.0,0.51466086]
[1760089004467,0.88424668,121930.0,121920.0,0.51466086]
[1760089004738,0.90890456,121930.0,121920.0,0.51466086]
[1760089005391,0.89518456,121930.0,121920.0,0.51466086]
[1760089007384,0.66358456,121930.0,121920.0,0.51466086]
[1760089007599,0.57508848,121930.0,121920.0,0.51466086]
[1760089008478,0.84500848,121930.0,121920.0,0.51466086]
[1760089008701,0.93040848,121930.0,121920.0,0.51466086]
[1760089013659,0.27180848,121930.0,121920.0,0.51466086]
[1760089013870,0.58880848,121930.0,121920.0,0.51466086]
[1760089014092,4.37137351,121930.0,121920.0,0.47399086]
[1760089014323,4.64547849,121930.0,121920.0,0.46159086]
[1760089015231,4.62287743,121930.0,121920.0,0.47756086]
[1760089016089,4.6228777,121930.0,121920.0,0.47756086]
[1760089016315,4.30278162,121930.0,121920.0,0.47756086]
[1760089016531,4.6228777,121930.0,121920.0,0.47756086]
[1760089018932,4.6228777,121930.0,121920.0,0.48896086]
[1760089019147,4.3058777,121930.0,121920.0,0.48896086]
[1760089019357,4.7888037,121930.0,121920.0,0.48896086]
[1760089019796,4.5572037,121930.0,121920.0,0.48896086]
[1760089019981,4.1302037,121930.0,121920.0,0.48896086]
[1760089020263,4.7888037,121930.0,121920.0,0.48896086]
[1760089020478,4.78880096,121930.0,121920.0,0.48896086]
[1760089021467,4.79680096,121930.0,121920.0,0.48896086]
[1760089022279,4.56520096,121930.0,121920.0,0.48896086]
[1760089022482,4.91544894,121930.0,121920.0,0.46159086]
[1760089022813,4.82695286,121930.0,121920.0,0.46159086]
[1760089023267,1.70605478,121930.0,121920.0,0.51480086]
[1760089023441,2.43305478,121930.0,121920.0,0.51480086]
[1760089023669,2.00605478,121930.0,121920.0,0.51480086]
[1760089023805,2.98475086,121930.0,121920.0,0.51480086]
[1760089026874,2.75315086,121930.0,121920.0,0.51480086]
[1760089027075,2.98475086,121930.0,121920.0,0.51480086]
[1760089027668,2.43305478,121930.0,121920.0,0.51480086]
[1760089027889,2.98475086,121930.0,121920.0,0.51480086]
[1760089028745,2.97675086,121930.0,121920.0,0.51480086]
[1760089029715,2.74515086,121930.0,121920.0,0.51480086]
[1760089029918,2.97675086,121930.0,121920.0,0.51480086]
[1760089032554,2.74515086,121930.0,121920.0,0.51480086]
[1760089032763,2.97675086,121930.0,121920.0,0.51480086]
[1760089033804,2.98475086,121930.0,121920.0,0.51480086]
[1760089034739,2.98475221,121930.0,121920.0,0.51480086]
[1760089037890,2.75315221,121930.0,121920.0,0.51480086]
[1760089038135,2.98475221,121930.0,121920.0,0.51480086]
[1760089038356,2.98475278,121930.0,121920.0,0.51480086]
[1760089042168,2.98479278,121930.0,121920.0,0.51480086]
[1760089042609,2.32615278,121930.0,121920.0,0.51480086]
[1760089042837,2.98479278,121930.0,121920.0,0.51480086]
[1760089044221,2.75319278,121930.0,121920.0,0.51480086]
[1760089044449,2.98479278,121930.0,121920.0,0.51480086]
[1760089044741,2.0060567,121930.0,121920.0,0.51480086]
[1760089044993,2.98479278,121930.0,121920.0,0.51480086]
[1760089047630,2.6646967,121930.0,121920.0,0.51480086]
[1760089047842,2.5792967,121930.0,121920.0,0.51480086]
[1760089048068,2.6646967,121930.0,121920.0,0.51480086]
[1760089048498,2.5792967,121930.0,121920.0,0.51480086]
[1760089048709,2.6646967,121930.0,121920.0,0.51480086]
[1760089049348,2.4330967,121930.0,121920.0,0.51480086]
[1760089049563,2.6646967,121930.0,121920.0,0.51480086]
[1760089050220,2.6566967,121930.0,121920.0,0.51480086]
[1760089053486,2.65666153,121930.0,121920.0,0.51480086]
[1760089054816,3.08349715,121930.0,121920.0,0.51480086]
[1760089055307,3.09149715,121930.0,121920.0,0.51480086]
[1760089055529,2.66466153,121930.0,121920.0,0.51480086]
[1760089056924,2.43310153,121930.0,121920.0,0.51480086]
[1760089057175,2.66466153,121930.0,121920.0,0.51480086]
[1760089059583,2.23762167,121930.0,121920.0,0.51480086]
[1760089059784,2.66466167,121930.0,121920.0,0.51480086]
[1760089060236,3.09149729,121930.0,121920.0,0.51480086]
[1760089060661,3.08349729,121930.0,121920.0,0.51480086]
[1760089061534,3.08349729,121930.0,121920.0,0.49031086]
[1760089062873,3.08349738,121930.0,121920.0,0.49031086]
[1760089063504,3.08349738,121930.0,121920.0,0.51311086]
[1760089064435,3.08349738,121930.0,121920.0,0.49031086]
[1760089065767,3.09149738,121930.0,121920.0,0.49031086]
[1760089067533,3.09149701,121930.0,121920.0,0.49031086]
[1760089068211,3.083799,121930.0,121920.0,0.49031086]
[1760089069317,3.072839,121930.0,121920.0,0.49031086]
[1760089069538,3.08053697,121930.0,121920.0,0.49031086]
[1760089073113,3.08053677,121930.0,121920.0,0.49031086]
[1760089074826,3.07253677,121930.0,121920.0,0.49031086]
[1760089079839,3.08053677,121930.0,121920.0,0.49031086]
[1760089082641,3.07253677,121930.0,121920.0,0.49031086]
[1760089087486,3.08053677,121930.0,121920.0,0.49031086]
[1760089088223,2.84897677,121930.0,121920.0,0.49031086]
[1760089088425,2.65370115,121930.0,121920.0,0.49031086]
[1760089088627,3.08053677,121930.0,121920.0,0.49031086]
[1760089088832,3.07253677,121930.0,121920.0,0.49031086]
[1760089089258,3.07253677,121930.0,121920.0,0.51472086]
[1760089089437,2.84097677,121930.0,121920.0,0.51472086]
[1760089089647,3.07253677,121930.0,121920.0,0.51472086]
[1760089090285,2.75557677,121930.0,121920.0,0.51472086]
[1760089090514,3.07253677,121930.0,121920.0,0.51472086]
[1760089090856,2.41393677,121930.0,121920.0,0.51472086]
[1760089091075,3.07253677,121930.0,121920.0,0.51472086]
[1760089091879,7.02413377,121930.0,121920.0,0.51472086]
[1760089092529,7.02413377,121930.0,121920.0,0.49031086]
[1760089093929,7.03213377,121930.0,121920.0,0.49031086]
[1760089094598,2.03213377,121930.0,121920.0,0.49031086]
[1760089094809,7.03213377,121930.0,121920.0,0.49031086]
[1760089095437,7.03213495,121930.0,121920.0,0.49031086]
[1760089095667,6.80057495,121930.0,121920.0,0.49031086]
[1760089095883,7.03209495,121930.0,121920.0,0.51472086]
[1760089096115,2.03209495,121930.0,121920.0,0.51472086]
[1760089096557,7.03209496,121930.0,121920.0,0.51472086]
[1760089096999,6.80057496,121930.0,121920.0,0.51472086]
[1760089097242,7.03209496,121930.0,121920.0,0.51472086]
[1760089097492,7.03209496,121930.0,121920.0,0.49031086]
[1760089098141,2.03209496,121930.0,121920.0,0.49031086]
[1760089098348,6.80057496,121930.0,121920.0,0.49031086]
[1760089098566,7.03209496,121930.0,121920.0,0.49031086]
[1760089098966,6.37353496,121930.0,121920.0,0.49031086]
[1760089099221,6.80057496,121930.0,121920.0,0.49031086]
[1760089099622,7.03209496,121930.0,121920.0,0.49031086]
[1760089100673,2.03209496,121930.0,121920.0,0.49031086]
[1760089101100,7.03209496,121930.0,121920.0,0.49031086]
[1760089101342,2.03209496,121930.0,121920.0,0.49031086]
[1760089101550,7.03209496,121930.0,121920.0,0.49031086]
[1760089101753,6.80057496,121930.0,121920.0,0.49031086]
[1760089101983,7.03209496,121930.0,121920.0,0.49031086]
[1760089102203,6.80057496,121930.0,121920.0,0.49031086]
[1760089102419,7.03209496,121930.0,121920.0,0.49031086]
[1760089102857,2.03209496,121930.0,121920.0,0.49031086]
[1760089103063,7.03209496,121930.0,121920.0,0.49031086]
[1760089103325,2.03209496,121930.0,121920.0,0.49031086]
[1760089104003,7.03209496,121930.0,121920.0,0.49031086]
[1760089104668,2.03209496,121930.0,121920.0,0.49031086]
[1760089105103,7.03209496,121930.0,121920.0,0.49031086]
[1760089106088,2.03209496,121930.0,121920.0,0.49031086]
[1760089106300,6.80057496,121930.0,121920.0,0.49031086]
[1760089106525,7.03209496,121930.0,121920.0,0.49031086]
[1760089106729,2.02409496,121930.0,121920.0,0.49031086]
[1760089106938,7.02409496,121930.0,121920.0,0.49031086]
[1760089108871,2.02409496,121930.0,121920.0,0.49031086]
[1760089109067,7.02409496,121930.0,121920.0,0.49031086]
[1760089109288,2.02409496,121930.0,121920.0,0.49031086]
[1760089109516,1.91742167,121930.0,121920.0,0.49031086]
[1760089109941,6.91742167,121930.0,121920.0,0.49031086]
[1760089110630,1.68590167,121930.0,121920.0,0.49031086]
[1760089110860,6.68590167,121930.0,121920.0,0.49031086]
[1760089111088,6.91742167,121930.0,121920.0,0.49031086]
[1760089111534,1.91742167,121930.0,121920.0,0.49031086]
[1760089111756,6.92542167,121930.0,121920.0,0.49031086]
[1760089111953,1.92542167,121930.0,121920.0,0.49031086]
[1760089112372,6.92542167,121930.0,121920.0,0.49031086]
[1760089113287,1.92542167,121930.0,121920.0,0.49031086]
[1760089113749,6.92542167,121930.0,121920.0,0.49031086]
[1760089114376,1.92542167,121930.0,121920.0,0.49031086]
[1760089114588,6.92542167,121930.0,121920.0,0.49031086]
[1760089115054,2.014064,121930.0,121920.0,0.46159086]
[1760089115298,7.56987657,121930.0,121920.0,0.46159086]
[1760089115517,7.33835657,121930.0,121920.0,0.46159086]
[1760089115740,7.56187657,121930.0,121920.0,0.46159086]
[1760089115950,6.879024,121930.0,121920.0,0.46159086]
[1760089116185,7.306064,121930.0,121920.0,0.46159086]
[1760089116407,2.537584,121930.0,121920.0,0.46159086]
[1760089116671,7.306064,121930.0,121920.0,0.46159086]
[1760089116880,6.879024,121930.0,121920.0,0.46159086]
[1760089117124,7.537584,121930.0,121920.0,0.46159086]
[1760089117536,2.537584,121930.0,121920.0,0.46159086]
[1760089117734,7.537584,121930.0,121920.0,0.46159086]
[1760089118990,2.537584,121930.0,121920.0,0.46159086]
[1760089119194,7.537584,121930.0,121920.0,0.46159086]
[1760089120107,2.537584,121930.0,121920.0,0.46159086]
[1760089120327,7.537584,121930.0,121920.0,0.46159086]
[1760089120553,6.879024,121930.0,121920.0,0.46159086]
[1760089120777,7.545584,121930.0,121920.0,0.46159086]
[1760089120991,7.553584,121930.0,121920.0,0.46159086]
[1760089121416,6.895024,121930.0,121920.0,0.46159086]
[1760089121629,7.322064,121930.0,121920.0,0.46159086]
[1760089121835,7.553584,121930.0,121920.0,0.46159086]
[1760089122075,2.553584,121930.0,121920.0,0.46159086]
[1760089122299,7.553584,121930.0,121920.0,0.46159086]
[1760089122952,2.553584,121930.0,121920.0,0.46159086]
[1760089123166,7.553584,121930.0,121920.0,0.46159086]
[1760089123802,2.553584,121930.0,121920.0,0.46159086]
[1760089123988,6.895024,121930.0,121920.0,0.46159086]
[1760089124220,2.553584,121930.0,121920.0,0.46159086]
[1760089124470,2.55357076,121930.0,121920.0,0.46159086]
[1760089124659,7.55357076,121930.0,121920.0,0.46159086]
[1760089125191,7.32205076,121930.0,121920.0,0.46159086]
[1760089125396,7.55357076,121930.0,121920.0,0.46159086]
[1760089125807,2.55357032,121930.0,121920.0,0.46159086]
[1760089126011,7.55357032,121930.0,121920.0,0.46159086]
[1760089126432,7.32205032,121930.0,121920.0,0.46159086]
[1760089126643,7.55357032,121930.0,121920.0,0.46159086]
[1760089127071,2.55357032,121930.0,121920.0,0.46159086]
[1760089127330,7.55357032,121930.0,121920.0,0.46159086]
[1760089127962,2.55357032,121930.0,121920.0,0.46159086]
[1760089128227,2.79962032,121930.0,121920.0,0.46159086]
[1760089128433,7.79962032,121930.0,121920.0,0.46159086]
[1760089129931,2.79962032,121930.0,121920.0,0.46159086]
[1760089130158,7.79193504,121930.0,121920.0,0.46159086]
[1760089130612,7.78361939,121930.0,121920.0,0.46159086]
[1760089130845,7.46669939,121930.0,121920.0,0.46159086]
[1760089131083,7.78361939,121930.0,121920.0,0.46159086]
[1760089131695,2.77593504,121930.0,121920.0,0.46159086]
[1760089131925,7.77593504,121930.0,121920.0,0.46159086]
[1760089132135,7.55209937,121930.0,121920.0,0.46159086]
[1760089132344,7.12505937,121930.0,121920.0,0.46159086]
[1760089132556,7.48361937,121930.0,121920.0,0.46159086]
[1760089132940,7.18361937,121930.0,121920.0,0.46159086]
[1760089133179,7.48361937,121930.0,121920.0,0.46159086]
[1760089133824,7.47481937,121930.0,121920.0,0.46142451]
[1760089134505,1.81625937,121930.0,121920.0,0.46142451]
[1760089134713,7.47481937,121930.0,121920.0,0.46142451]
[1760089135372,7.60377508,121930.0,121920.0,0.0432016]
[1760089135646,7.60377508,121930.0,121880.0,0.01193]
[1760089135647,0.46408236,121890.0,121880.0,0.01193]
[1760089135846,0.95281689,121890.0,121880.0,0.01193]
[1760089136059,0.95281689,121890.0,121880.0,0.02809]
[1760089136273,1.18433689,121890.0,121880.0,0.02809]
[1760089136517,1.20900322,121890.0,121880.0,0.02809]
[1760089136940,0.97748322,121890.0,121880.0,0.02809]
[1760089137149,1.20900322,121890.0,121880.0,0.02809]
[1760089139993,1.20900322,121890.0,121880.0,0.05117]
[1760089140454,1.20900322,121890.0,121880.0,0.02809]
[1760089140455,3.09943322,121890.0,121880.0,0.02809]
[1760089141321,3.09943322,121890.0,121880.0,0.03036461]
[1760089142855,2.86791322,121890.0,121880.0,0.03036461]
[1760089143075,3.09943322,121890.0,121880.0,0.03036461]
[1760089143771,2.86791322,121890.0,121880.0,0.03036461]
[1760089144000,3.09943322,121890.0,121880.0,0.03036461]
[1760089144930,2.86791322,121890.0,121880.0,0.03036461]
[1760089145145,3.09943322,121890.0,121880.0,0.03036461]
[1760089145575,3.12958512,121890.0,121880.0,0.03036461]
[1760089147159,2.89806512,121890.0,121880.0,0.03036461]
[1760089147374,3.12958512,121890.0,121880.0,0.03036461]
[1760089148659,2.81266512,121890.0,121880.0,0.03036461]
[1760089148906,3.47130512,121890.0,121880.0,0.03036461]
[1760089149130,2.81266512,121890.0,121880.0,0.03036461]
[1760089149358,2.80946279,121890.0,121880.0,0.03036461]
[1760089149570,3.12962512,121890.0,121880.0,0.03036461]
[1760089149785,2.49250279,121890.0,121880.0,0.03036461]
[1760089150009,2.81266512,121890.0,121880.0,0.05309461]
[1760089150228,3.12962512,121890.0,121880.0,0.05309461]
[1760089150656,2.83269412,121890.0,121880.0,0.05309461]
[1760089151917,2.74729412,121890.0,121880.0,0.05309461]
[1760089152225,2.83269412,121890.0,121880.0,0.05309461]
[1760089152481,2.71483712,121890.0,121880.0,0.05309461]
[1760089157053,2.48327712,121890.0,121880.0,0.05309461]
[1760089157292,2.71483712,121890.0,121880.0,0.05309461]
[1760089157716,2.48327712,121890.0,121880.0,0.05309461]
[1760089157925,2.71483712,121890.0,121880.0,0.05309461]
[1760089162035,2.71479712,121890.0,121880.0,0.05309461]
[1760089165132,2.72249848,121890.0,121880.0,0.05309461]
[1760089165755,2.71479712,121890.0,121880.0,0.05309461]
[1760089165985,2.7224984,121890.0,121880.0,0.05309461]
[1760089166191,2.71479712,121890.0,121880.0,0.05309461]
[1760089168715,1.23915512,121890.0,121880.0,0.05309461]
[1760089169724,0.91899279,121890.0,121880.0,0.05309461]
[1760089170087,1.23915512,121890.0,121880.0,0.05309461]
[1760089171649,1.34611285,121890.0,121880.0,0.05309461]
[1760089171867,0.91899279,121890.0,121880.0,0.05309461]
[1760089176676,1.34611285,121890.0,121880.0,0.05309461]
[1760089177527,1.02919285,121890.0,121880.0,0.05309461]
[1760089177742,1.34611285,121890.0,121880.0,0.05309461]
[1760089179393,1.34611285,121890.0,121880.0,0.05531461]
[1760089181518,1.11459285,121890.0,121880.0,0.05531461]
[1760089181730,1.34611285,121890.0,121880.0,0.07172419]
[1760089181935,1.34611285,121890.0,121880.0,0.05531461]
[1760089182143,1.39819743,121890.0,121880.0,0.05531461]
[1760089182351,1.34611285,121890.0,121880.0,0.05531461]
[1760089183797,1.02919285,121890.0,121880.0,0.07172419]
[1760089184000,1.34611285,121890.0,121880.0,0.07172419]
[1760089185021,0.91899279,121890.0,121880.0,0.07172419]
[1760089186056,0.91899279,121890.0,121880.0,0.05531461]
[1760089189024,0.91899279,121890.0,121880.0,0.07172419]
[1760089191099,0.91899279,121890.0,121880.0,0.05531461]
[1760089195955,0.57192089,121890.0,121880.0,0.21941044]
[1760089196169,0.88884089,121890.0,121880.0,0.05531461]
[1760089196374,0.88884089,121890.0,121880.0,0.07172419]
[1760089196814,0.88884089,121890.0,121880.0,0.23582002]
[1760089197036,0.88884089,121890.0,121880.0,0.05531461]